[Event "3rd Rio Open 2024"]
[Site "Rio de Janeiro"]
[Date "2024.04.24"]
[Round "3.2"]
[White "Matsuura, Everaldo"]
[Black "Rangel, Daniel"]
[Result "1/2-1/2"]
[ECO "C64"]
[WhiteElo "2380"]
[BlackElo "2160"]
[Annotator "TA"]
[PlyCount "36"]
[EventDate "2024.04.12"]
[EventType "swiss"]
[EventCountry "BRA"]
[SourceTitle "playchess.com"]
[Source "ChessBase"]
[SourceQuality "1"]
[TimeControl "5400+30"]

{[%evp 10,36,79,44,45,34,35,36,34,35,42,31,40,17,36,34,50,0,47,31,37,0,0,0,0,0,12,0,36]} 1. e4 {[%emt 0:00:10]} e5 {[%emt 0:00:09]} 2. Nf3 {[%emt 0:00:25]} Nc6 {[%emt 0:00:09]} 3. Bb5 {[%emt 0:00:31]} a6 {[%emt 0:00:09]} 4. Ba4 {[%emt 0:00:21]} Bc5 {[%emt 0:00:22]} 5. O-O {[%emt 0:00:52]} Nge7 {[%emt 0:00:21]} 6. c3 {[%emt 0:00:57]} (6. Nxe5 $5 Nxe5 7. d4 $14) 6... Ba7 {[%emt 0:00:36]} 7. d4 {[%emt 0:01:16]} Ng6 {[%emt 0:01:54]} 8. Bg5 {[%emt 0:00:20]} f6 {[%emt 0:00:10] White is slightly better.} 9. Be3 {[%emt 0:00:15]} O-O {[%emt 0:00:38]} 10. Nbd2 {[%emt 0:00:15]} Kh8 {[%emt 0:02:03]} 11. Bb3 {[%emt 0:04:22]} d6 {[%emt 0:10:21]} 12. Re1 {[%emt 0:02:00]} Nce7 {[%emt 0:09:29]} 13. Nf1 {[%emt 0:05:35]} (13. a4 $14) 13... exd4 {[%emt 0:07:06]} (13... Bg4 $1 $11) 14. Bxd4 {[%emt 0:04:05]} Bxd4 {[%emt 0:13:44]} 15. Nxd4 {[%emt 0:00:40]} f5 {[%emt 0:03:26] The position is equal.} 16. exf5 {[%emt 0:01:40]} Nxf5 {[%emt 0:01:19]} 17. Nxf5 {[%emt 0:40:25]} Bxf5 {[%emt 0:00:53]} 18. Ng3 {[%emt 0:00:50]} Ne5 {[%emt 0:13:59] Weighted Error Value: White=0.14 (very precise) /Black=0.11 (very precise) .  Mistake:       	White=1     	Black=1      Inaccurate:     	---       	Black=1      OK:         	White=5     	Black=1      Best:        	---       	Black=2} 1/2-1/2

[Event "3rd Rio Open 2024"]
[Site "Rio de Janeiro"]
[Date "2024.04.24"]
[Round "3.3"]
[White "Casalaspro, Mathias Andre"]
[Black "Hoffman, Alejandro"]
[Result "1-0"]
[ECO "A44"]
[WhiteElo "2107"]
[BlackElo "2379"]
[Annotator "TA"]
[PlyCount "87"]
[EventDate "2024.04.12"]
[EventType "swiss"]
[EventCountry "BRA"]
[SourceTitle "playchess.com"]
[Source "ChessBase"]
[SourceQuality "1"]
[TimeControl "5400+30"]

{[%evp 10,87,81,83,71,81,94,84,85,74,65,62,97,71,108,64,75,82,61,57,66,60,79,74,77,13,18,11,55,59,112,110,125,99,109,102,108,117,133,127,152,151,155,154,163,163,163,167,164,164,176,115,113,92,138,27,20,7,105,69,70,67,68,75,76,76,289,316,361,370,363,341,522,481,448,433,952,951,942,950]} 1. d4 {[%emt 0:08:06][%cal Bd2d4,Bd4d5][%mdl 32]} c5 {[%emt 0:01:45]} 2. d5 {[%emt 0:00:14]} e5 {[%emt 0:00:52]} 3. e4 {[%emt 0:00:35]} d6 {[%emt 0:00:08]} 4. Nc3 {[%emt 0:00:14]} Nf6 {[%emt 0:01:22]} 5. Bb5+ {[%emt 0:00:32]} Nbd7 {[%emt 0:01:00]} 6. a4 {[%emt 0:00:11]} Be7 {[%emt 0:00:09]} 7. Nf3 {[%emt 0:01:39][%cal Bg1f3,Bf3d2,Bd2c4][%mdl 32]} a6 {[%emt 0:04:55]} 8. Be2 {[%emt 0:01:53]} b6 {[%emt 0:01:51] White is better.} 9. h3 {[%emt 0:02:40]} Nf8 {[%emt 0:03:15]} 10. Nd2 {[%emt 0:04:26]} Rb8 {[%emt 0:00:50]} 11. Nc4 {[%emt 0:01:32]} Ng6 {[%emt 0:01:01]} 12. g3 {[%emt 0:00:22]} Bd7 $1 {[%emt 0:05:26]} 13. Bg5 {[%emt 0:04:59]} Qc7 {[%emt 0:03:08]} 14. Na3 {[%emt 0:02:01]} Ra8 {[%emt 0:01:08]} 15. h4 {[%emt 0:01:11] Black must now prevent h5.} h6 {[%emt 0:03:07]} 16. Bd2 {[%emt 0:01:47]} O-O {[%emt 0:11:42]} 17. Kf1 {[%emt 0:05:30]} ({White should play} 17. h5 $16 Nh8 18. Bd3) 17... Qb7 $11 {[%emt 0:04:13][%cal Ob6b5]} 18. Kg2 {[%emt 0:00:53]} Ne8 {[%emt 0:00:45]} 19. Bg4 {[%emt 0:02:07]} Bxg4 {[%emt 0:09:13]} ({Black should try} 19... Bd8 $14) 20. Qxg4 $16 {[%emt 0:00:13]} Nf6 {[%emt 0:00:07]} 21. Qe2 {[%emt 0:05:19]} Rfe8 {[%emt 0:05:28]} 22. h5 {[%emt 0:02:56]} Nf8 {[%emt 0:00:15]} 23. f3 {[%emt 0:01:00]} Rab8 {[%emt 0:05:42]} 24. Nc4 {[%emt 0:03:02]} N8d7 {[%emt 0:04:56]} 25. Nd1 {[%emt 0:03:35]} Qc7 {[%emt 0:07:40]} 26. Nde3 {[%emt 0:02:24]} Rb7 {[%emt 0:00:57]} 27. Nf5 {[%emt 0:01:06]} Bf8 {[%emt 0:00:05]} 28. b3 {[%emt 0:02:17]} Nb8 {[%emt 0:00:18]} 29. g4 {[%emt 0:07:10] Strongly threatening g5.} Nh7 {[%emt 0:00:42]} 30. f4 {[%emt 0:03:12]} (30. Qf2 $18) 30... b5 {[%emt 0:06:46]} 31. Na5 {[%emt 0:01:49]} Rb6 {[%emt 0:00:35] [#]} (31... exf4 $142 32. Nxb7 Ng5 33. Bxf4 Rxe4) 32. Qf3 {[%emt 0:03:54]} ({Better is} 32. g5 $1 $16) 32... exf4 $11 {[%emt 0:01:53]} 33. Bxf4 {[%emt 0:00:07]} f6 {[%emt 0:10:18]} (33... Nd7 $11) 34. Rhe1 {[%emt 0:01:28] White is much more active.} Ng5 {[%emt 0:02:57]} 35. Bxg5 {[%emt 0:00:15]} fxg5 {[%emt 0:00:03] Black is weak on the light squares} 36. Rf1 {[%emt 0:06:27][%cal Be1f1,Bf1f7,Bf7c7][%mdl 32]} Kh8 {[%emt 0:01:13]} 37. Qc3 {[%emt 0:01:53] [#] axb5 would now be deadly.} Kh7 $2 {[%emt 0:01:17] Black cannot hold the game after this.} (37... Kg8 $16 {was necessary.}) 38. Nd4 $18 {[%emt 0:00:36]} b4 {[%emt 0:01:27]} (38... Rxe4 $2 39. Qd3 (39. Rxf8 Rxg4+ 40. Kf1 Rxd4 $18) 39... Nd7 40. Qxe4+ $18 (40. Ne6 Qb8 $18)) 39. Qc4 {[%emt 0:00:23]} (39. Ne6 Rxe6 (39... bxc3 $2 40. Nxc7 Rxe4 41. Rxf8 $18) 40. Qd3 Re8 $16) 39... Nd7 {[%emt 0:00:45][%cal Od7e5] ...Ne5! is the strong threat.} (39... Rxe4 $2 40. Qd3 (40. Rxf8 Rxg4+ 41. Kh2 Rxd4 $11) 40... Kg8 41. Qxe4 $18 (41. Rxf8+ Kxf8 42. Qxe4 cxd4 $18)) 40. Rf7 {[%emt 0:00:50] Hoping for Ne6.} (40. Ne6 Qc8 41. Qe2 Rxe6 $18) 40... Qc8 {[%emt 0:00:08]} (40... Rxe4 $2 {perishes.} 41. Qd3 Kg8 42. Qxe4 $18) (40... Re7 {was called for.}) 41. Ne6 {[%emt 0:02:24] White is clearly winning.} Ne5 {[%emt 0:00:09]} 42. Qf1 {[%emt 0:00:02]} Kg8 {[%emt 0:01:24]} (42... Nxf7 $142 43. Qxf7 c4 44. Qg6+ (44. Nxc4 Rb7 $18) (44. bxc4 Rb8 $18) 44... Kh8) 43. Rc7 {[%emt 0:00:32]} Qb8 {[%emt 0:00:06]} 44. Qf5 {[%emt 0:00:47] Weighted Error Value: White=0.14 (very precise) /Black=0.25 (precise) .  Loses game:     	---       	Black=1      Mistake:       	White=3     	Black=5      Inaccurate:     	White=2     	Black=3      OK:         	White=15    	Black=13     Best:        	White=2     	Black=2      Strong:       	---       	Black=1} 1-0

[Event "3rd Rio Open 2024"]
[Site "Rio de Janeiro"]
[Date "2024.04.24"]
[Round "3.4"]
[White "Lima, Darcy"]
[Black "De Albuquerque, Ian Telek C."]
[Result "1-0"]
[ECO "A34"]
[WhiteElo "2369"]
[BlackElo "2134"]
[Annotator "TA"]
[PlyCount "50"]
[EventDate "2024.04.12"]
[EventType "swiss"]
[EventCountry "BRA"]
[SourceTitle "playchess.com"]
[Source "ChessBase"]
[SourceQuality "1"]
[TimeControl "5400+30"]

{[%evp 20,50,10,28,60,-29,47,8,33,22,31,22,26,0,27,23,20,-42,-39,-46,-14,-27,67,63,108,89,104,104,322,311,1366,-591,-38]} 1. c4 {[%emt 0:00:02]} c5 {[%emt 0:01:53]} 2. g3 {[%emt 0:00:54]} Nf6 {[%emt 0:02:29]} 3. Bg2 {[%emt 0:00:07]} d5 {[%emt 0:01:35]} 4. cxd5 {[%emt 0:00:03]} Nxd5 {[%emt 0:00:02]} 5. Nc3 {[%emt 0:00:12]} Nc7 {[%emt 0:00:08]} 6. Nf3 {[%emt 0:01:00][%cal Bg1f3,Bf3d2,Bd2c4][%mdl 32]} Nc6 {[%emt 0:00:05]} 7. d3 {[%emt 0:00:30]} e5 {[%emt 0:00:43]} 8. Nd2 {[%emt 0:00:09]} Bd7 {[%emt 0:06:46]} 9. Nc4 {[%emt 0:01:37]} Be7 {[%emt 0:02:26]} 10. O-O {[%emt 0:00:07]} f6 {[%emt 1:19:23]} 11. f4 {[%emt 0:00:36]} exf4 {[%emt 0:00:00]} 12. gxf4 {[%emt 0:04:48]} (12. Bxf4 $14 Be6 13. Qb3) 12... Be6 {[%emt 0:00:00]} (12... O-O $11) 13. f5 {[%emt 0:02:07]} Bf7 {[%emt 0:00:00] The position is equal.} 14. Bf4 {[%emt 0:23:23]} O-O {[%emt 0:00:00]} 15. Qb3 {[%emt 0:08:44]} Rb8 {[%emt 0:00:00]} 16. a4 {[%emt 0:02:35]} Qd7 {[%emt 0:00:00]} 17. Nb5 {[%emt 0:09:57]} Nxb5 {[%emt 0:00:00]} 18. Qxb5 {[%emt 0:12:29]} (18. axb5 $11 Nd4 19. Qd1) 18... Rbd8 $15 {[%emt 0:00:00]} 19. Rf2 {[%emt 0:01:30]} Nd4 {[%emt 0:00:00]} (19... Qxf5 $2 {perishes.} 20. Qxb7 Nd4 21. Qxe7 $18) 20. Qxb7 {[%emt 0:02:35]} Nxf5 {[%emt 0:00:00]} ({Better is} 20... Qxb7 $11 21. Bxb7 Nxf5) 21. Bc7 $1 $14 {[%emt 0:08:30]} Rc8 {[%emt 0:00:00]} 22. Bg3 {[%emt 0:01:44] White has more active pieces.} Qd4 {[%emt 0:00:00] [#]} 23. e3 $1 {[%emt 0:06:11]} Qxd3 {[%emt 0:00:00]} (23... Nxe3 $16 {might work better.} 24. Qxe7 Nxg2 25. Kxg2 Rfe8 26. Qxa7 Rcd8) 24. Bf1 $18 {[%emt 0:12:40]} ({And not} 24. Qxa7 Bxc4 25. Bf1 Qxe3 26. Bxc4+ Kh8 $17) 24... Qd7 {[%emt 0:07:00] [#]} (24... Qd5 25. Qxd5 (25. Qxa7 Nxg3 26. hxg3 Bd6 $17) 25... Bxd5) 25. Bc7 $4 {[%emt 0:00:00][%mdl 8192]} Rcd8 $2 {[%emt 0:00:00][%mdl 32768] Weighted Error Value: White=0.39/Black=0.43.  Loses game:     	---       	Black=1      Missed win:     	White=1     	Black=1      Mistake:       	White=2     	Black=3      Inaccurate:     	White=2     	Black=3      OK:         	White=5     	Black=2      Best:        	White=1     	---        Strong:       	White=2     	---       . Loss on time!?} (25... Rxc7 $19 26. Qf3 Nd6) 1-0

[Event "3rd Rio Open 2024"]
[Site "Rio de Janeiro"]
[Date "2024.04.24"]
[Round "3.5"]
[White "Lage, Pedro Ferreira"]
[Black "Piccoli, Lucas Fonseca"]
[Result "1/2-1/2"]
[ECO "A13"]
[WhiteElo "2061"]
[BlackElo "2274"]
[Annotator "TA"]
[PlyCount "36"]
[EventDate "2024.04.12"]
[EventType "swiss"]
[EventCountry "BRA"]
[SourceTitle "playchess.com"]
[Source "ChessBase"]
[SourceQuality "1"]
[TimeControl "5400+30"]

{[%evp 14,36,16,8,5,0,0,0,0,0,0,-4,2,-10,22,18,18,11,17,16,17,9,10,0,0]} 1. Nf3 {[%emt 0:19:50]} Nf6 {[%emt 0:00:14]} 2. c4 {[%emt 0:01:32]} e6 {[%emt 0:01:01]} 3. e3 {[%emt 0:00:36]} b6 {[%emt 0:02:06]} 4. b3 {[%emt 0:00:32]} Bb7 {[%emt 0:00:45]} 5. Bb2 {[%emt 0:00:19]} Be7 {[%emt 0:01:40]} 6. Be2 {[%emt 0:01:04]} O-O {[%emt 0:02:20]} 7. O-O {[%emt 0:00:16]} d5 {[%emt 0:02:22]} 8. d4 {[%emt 0:01:16] The position is equal.} Nbd7 {[%emt 0:04:32]} 9. Nbd2 {[%emt 0:00:29]} c5 {[%emt 0:01:14]} 10. Rc1 {[%emt 0:01:17]} Rc8 {[%emt 0:02:55]} 11. Rc2 {[%emt 0:05:08]} cxd4 {[%emt 0:03:29]} 12. Nxd4 {[%emt 0:01:04]} Nc5 {[%emt 0:02:13]} 13. Qa1 {[%emt 0:02:43]} (13. Qb1 {keeps more tension.} dxc4 14. Rxc4 Qd5 15. N4f3) 13... a6 {[%emt 0:10:00]} 14. Rfc1 {[%emt 0:03:02]} dxc4 {[%emt 0:02:59]} 15. Rxc4 {[%emt 0:07:18] Hoping for b4.} b5 {[%emt 0:07:35]} 16. R4c2 {[%emt 0:00:25]} Qb6 {[%emt 0:00:26]} 17. N4f3 {[%emt 0:04:57]} Ncd7 {[%emt 0:14:01]} 18. Ne5 {[%emt 0:04:45]} Rxc2 {[%emt 0:09:21] A rather calm draw.   Weighted Error Value: White=0.04 (flawless) /Black=0.04 (flawless) .  Inaccurate:     	---       	Black=1      OK:         	White=1     	Black=6} 1/2-1/2

[Event "3rd Rio Open 2024"]
[Site "Rio de Janeiro"]
[Date "2024.04.25"]
[Round "4.1"]
[White "Fier, Alexandr"]
[Black "Casalaspro, Mathias Andre"]
[Result "1-0"]
[ECO "E61"]
[WhiteElo "2566"]
[BlackElo "2107"]
[Annotator "TA"]
[PlyCount "117"]
[EventDate "2024.04.12"]
[EventType "swiss"]
[EventCountry "BRA"]
[SourceTitle "playchess.com"]
[Source "ChessBase"]
[SourceQuality "1"]
[TimeControl "5400+30"]

{[%evp 14,117,0,0,10,15,8,-18,0,0,-11,-5,-3,-27,-28,-25,-2,-56,35,0,0,-18,-15,-14,127,133,123,128,120,126,133,129,121,131,136,142,142,118,135,118,135,137,117,93,91,106,141,157,134,134,185,178,166,155,160,134,133,169,153,145,269,168,180,184,208,202,213,203,211,196,203,196,352,386,565,425,523,527,584,569,1505,1431,1402,487,628,583,560,478,576,584,584,572,966,941,29977,29972,29972,29973,29973,29974,29974,29975,29975,29976,29976,29976]} 1. c4 {[%emt 0:00:02]} Nf6 {[%emt 0:00:43]} 2. Nc3 {[%emt 0:00:06]} g6 {[%emt 0:00:10]} 3. g3 {[%emt 0:00:04]} Bg7 {[%emt 0:00:25]} 4. Bg2 {[%emt 0:00:06]} O-O {[%emt 0:00:22]} 5. d4 {[%emt 0:00:03]} d6 {[%emt 0:00:27]} 6. e3 {[%emt 0:00:04]} e5 {[%emt 0:01:25]} 7. Nge2 {[%emt 0:00:05]} Re8 {[%emt 0:03:11]} 8. O-O {[%emt 0:00:06]} e4 {[%emt 0:02:20]} 9. h3 {[%emt 0:00:06]} c6 {[%emt 0:03:11]} 10. b3 {[%emt 0:03:15]} h5 {[%emt 0:05:26] The position is equal.} 11. Ba3 {[%emt 0:00:06]} Bf5 {[%emt 0:02:09]} 12. Rc1 {[%emt 0:00:30]} Na6 {[%emt 0:01:46][%cal Ob7b5]} 13. b4 {[%emt 0:03:57]} Nc7 {[%emt 0:03:32]} 14. d5 {[%emt 0:00:05]} Qd7 {[%emt 0:07:16] Hoping for ...cxd5.} 15. Kh2 {[%emt 0:00:51]} (15. dxc6 $11 bxc6 16. Kh2) 15... Nh7 {[%emt 0:02:31]} ({Black should try} 15... cxd5 $15 16. cxd5 Rac8) 16. Nd4 {[%emt 0:01:47]} cxd5 {[%emt 0:05:01]} 17. Nxf5 {[%emt 0:02:22]} Qxf5 {[%emt 0:00:57]} 18. Nxd5 {[%emt 0:00:06]} Ne6 {[%emt 0:03:01]} (18... Nxd5 $11 19. Qxd5 Qxd5 20. cxd5 f5) 19. Qc2 {[%emt 0:02:51]} Nhg5 {[%emt 0:08:01]} 20. f4 {[%emt 0:00:06]} exf3 {[%emt 0:00:10]} 21. Qxf5 {[%emt 0:00:04]} gxf5 {[%emt 0:00:16]} 22. Bxf3 {[%emt 0:00:04]} Nxf3+ {[%emt 0:07:44]} 23. Rxf3 {[%emt 0:00:05]} Be5 {[%emt 0:00:09]} 24. h4 {[%emt 0:00:19]} Rac8 {[%emt 0:01:23]} 25. Rxf5 {[%emt 0:00:08]} Ng7 {[%emt 0:00:10]} 26. Rf2 {[%emt 1:26:12] White is more active.} f5 {[%emt 0:00:31]} 27. Bb2 {[%emt 0:00:00]} Kf7 {[%emt 0:03:45]} 28. Bxe5 {[%emt 0:00:00]} Rxe5 {[%emt 0:00:15]} 29. Rd2 {[%emt 0:00:00]} Ne6 {[%emt 0:02:07]} 30. a4 {[%emt 0:00:00]} Rc6 {[%emt 0:04:55]} 31. Kg2 {[%emt 0:00:00]} Re4 {[%emt 0:04:59] [#]} (31... Rc8 $16 32. a5 Rc6) 32. Rf2 $1 $18 {[%emt 0:00:00]} Ng7 {[%emt 0:00:42]} 33. Rfc2 {[%emt 0:00:00]} Ne8 {[%emt 0:03:57]} 34. Kf3 {[%emt 0:00:00]} Nf6 {[%emt 0:01:33]} 35. Nxf6 {[%emt 0:00:00]} Kxf6 $16 {[%emt 0:00:08][%mdl 4096] Endgame. KRR-KRR} 36. Rd1 {[%emt 0:00:00]} a6 {[%emt 0:05:20]} (36... b6 $16 {might work better.} 37. Rd4 d5) 37. Rd4 {[%emt 0:00:00]} Ke5 {[%emt 0:02:53]} 38. Rcd2 {[%emt 0:00:00]} (38. Rxe4+ fxe4+ 39. Kf2 d5 $11) 38... Ke6 {[%emt 0:01:22]} 39. Rxe4+ {[%emt 0:00:00]} fxe4+ {[%emt 0:00:05]} 40. Kxe4 {[%emt 0:00:00]} Rxc4+ $18 {[%emt 0:00:07] KR-KR} 41. Rd4 {[%emt 0:00:00]} Rc1 {[%emt 0:02:16]} 42. Kf4 {[%emt 0:00:00] Kg5 is the strong threat.} Rf1+ $2 {[%emt 0:00:17]} (42... Rg1 43. e4 Rf1+ 44. Kg5 Rf3) 43. Kg5 {[%emt 0:00:00]} Rf3 {[%emt 0:00:24] [#]} (43... Rf5+ $142 44. Kg6 d5) 44. g4 $1 {[%emt 0:00:00]} (44. Kxh5 Rxg3 45. Rg4 Rxe3 $16) 44... hxg4 {[%emt 0:00:32]} 45. Re4+ {[%emt 0:00:00]} ({Less strong is} 45. Rxg4 Rxe3 46. Kg6 (46. h5 Kf7 $14) 46... Ke7 $16) 45... Kd5 {[%emt 0:02:42]} 46. Rxg4 {[%emt 0:00:00]} Rxe3 {[%emt 0:00:28]} 47. h5 {[%emt 0:00:00]} Re8 {[%emt 0:00:54]} 48. h6 {[%emt 0:00:00]} (48. Kf6 $142 Rf8+ 49. Kg7) 48... Rg8+ {[%emt 0:01:00]} 49. Kh5 {[%emt 0:00:00]} Rh8 {[%emt 0:00:02]} 50. Rg7 {[%emt 0:00:00]} b5 {[%emt 0:01:47]} 51. axb5 {[%emt 0:00:00]} axb5 {[%emt 0:00:06]} 52. Rc7 {[%emt 0:13:00]} Rg8 53. h7 Rg1 54. Kh6 {White mates.} (54. h8=R $2 {is the wrong capture.} Rh1+ 55. Kg4 Rxh8 $19) 54... Rh1+ 55. Kg7 Rg1+ 56. Kf8 Rf1+ 57. Kg8 Rg1+ 58. Rg7 Rh1 59. Rg4 {[%emt 0:00:00] Weighted Error Value: White=0.19 (very precise) /Black=0.39.  Mistake:       	White=1     	Black=6      Inaccurate:     	White=3     	Black=4      OK:         	White=15    	Black=9      Best:        	White=6     	Black=3      Strong:       	White=1     	---} 1-0

[Event "3rd Rio Open 2024"]
[Site "Rio de Janeiro"]
[Date "2024.04.25"]
[Round "4.2"]
[White "Terao, Juliana Sayumi"]
[Black "Labussiere, Yago"]
[Result "1/2-1/2"]
[ECO "B22"]
[WhiteElo "2179"]
[BlackElo "2184"]
[Annotator "TA"]
[PlyCount "71"]
[EventDate "2024.04.12"]
[EventType "swiss"]
[EventCountry "BRA"]
[SourceTitle "playchess.com"]
[Source "ChessBase"]
[SourceQuality "1"]
[TimeControl "5400+30"]

{[%evp 14,71,39,37,39,42,41,41,34,16,3,25,44,31,56,32,25,37,70,13,17,0,6,0,0,0,0,0,0,0,0,0,0,0,0,0,0,0,0,0,0,-16,0,0,22,-10,-8,-9,0,0,0,0,0,0,0,-39,374,-817,0,-54]} 1. e4 {[%emt 0:00:04]} c5 {[%emt 0:01:33]} 2. c3 {[%emt 0:00:07]} Nf6 {[%emt 0:00:34]} 3. e5 {[%emt 0:00:07]} Nd5 {[%emt 0:00:05]} 4. Nf3 {[%emt 0:00:06]} Nc6 {[%emt 0:00:38]} 5. Bc4 {[%emt 0:00:08][%cal Bf1c4,Bc4b3,Bb3c2][%mdl 32]} Nb6 {[%emt 0:00:42][%cal Bd5b6,Bb6d7,Bd7f6][%mdl 32]} 6. Bb3 {[%emt 0:00:06]} c4 {[%emt 0:00:20]} 7. Bc2 {[%emt 0:00:07]} d6 {[%emt 0:00:13]} 8. exd6 {[%emt 0:00:08]} e5 {[%emt 0:00:05][%cal Of7f5]} 9. a4 {[%emt 0:01:50][%cal Ba2a4,Ba4a5][%mdl 32]} Bxd6 {[%emt 0:08:41]} 10. a5 {[%emt 0:07:00]} Nd7 {[%emt 0:11:16][%cal Od7c5] White is slightly better.} 11. d3 {[%emt 0:02:01]} cxd3 {[%emt 0:05:26]} 12. Qxd3 {[%emt 0:00:11]} Nf6 {[%emt 0:07:49][%cal Oe5e4]} 13. Nbd2 {[%emt 0:18:45][%cal Oa5a6]} O-O {[%emt 0:24:04] [#] ...e4 would now be deadly.} 14. O-O {[%emt 0:00:39][%cal Oa5a6]} (14. Ng5 {looks sharper.} g6 15. a6 bxa6 16. Qc4) 14... Bc7 {[%emt 0:02:15]} 15. Qe2 {[%emt 0:12:19][%cal Oa5a6]} Bxa5 {[%emt 0:06:33]} 16. Nc4 {[%emt 0:04:54] White is more active.} (16. Rd1 $1 $14 Qe8 17. b4) 16... Bc7 $11 {[%emt 0:01:01]} 17. Rd1 {[%emt 0:00:15] Prevents e4.} Qe7 {[%emt 0:02:02]} 18. b3 {[%emt 0:11:02]} e4 {[%emt 0:08:30]} 19. Ba3 {[%emt 0:05:34]} exf3 {[%emt 0:00:31]} 20. Qxe7 {[%emt 0:00:09]} Nxe7 {[%emt 0:00:02]} 21. Bxe7 {[%emt 0:00:10]} Re8 {[%emt 0:00:42]} 22. Bd6 {[%emt 0:09:04]} b5 {[%emt 0:10:26]} 23. Bxc7 {[%emt 0:00:28]} bxc4 {[%emt 0:00:03]} 24. bxc4 {[%emt 0:01:33] [#] Black must now prevent Ba4.} (24. gxf3 cxb3 25. Bxb3 Bb7) 24... Bb7 $1 {[%emt 0:07:36]} 25. gxf3 {[%emt 0:02:25]} Bxf3 {[%emt 0:00:37]} 26. Rd4 {[%emt 0:01:20]} Bc6 {[%emt 0:01:10]} 27. h3 {[%emt 0:02:26]} Rec8 {[%emt 0:00:14]} 28. Ba5 {[%emt 0:00:48]} g6 {[%emt 0:00:48]} 29. Re1 {[%emt 0:03:29]} Re8 {[%emt 0:00:26]} 30. Rxe8+ {[%emt 0:03:01]} Nxe8 {[%emt 0:00:01]} 31. c5 {[%emt 0:00:27]} Rc8 {[%emt 0:00:24]} 32. Bb3 {[%emt 0:03:44]} Nc7 {[%emt 0:00:26]} 33. Rd6 {[%emt 0:01:12]} Ne8 {[%emt 0:01:47]} 34. Re6 {[%emt 0:11:51]} Rb8 $2 {[%emt 0:00:30][%mdl 8192]} (34... Ba4 $15 35. Ba2 Rxc5) 35. Rd6 $4 {[%emt 0:00:30][%mdl 8192]} (35. Rxc6 $18 Rxb3 36. Rc8 Rb1+ 37. Kg2) 35... Rc8 $2 ({Better is} 35... Nxd6 $19 36. Bb4 Ne4) 36. Re6 {[%emt 0:00:30] Weighted Error Value: White=0.29 (precise) /Black=0.40.  Loses game:     	---       	Black=1      Missed win:     	White=1     	Black=1      Mistake:       	White=2     	---        Inaccurate:     	White=2     	Black=1      OK:         	White=9     	Black=13     Best:        	White=1     	Black=1      Strong:       	---       	Black=1} (36. Rd4 $11) 1/2-1/2

[Event "3rd Rio Open 2024"]
[Site "Rio de Janeiro"]
[Date "2024.04.25"]
[Round "4.3"]
[White "Zacarias, Rodrigo Medeiros"]
[Black "Matsuura, Everaldo"]
[Result "0-1"]
[ECO "C99"]
[WhiteElo "2101"]
[BlackElo "2380"]
[Annotator "TA"]
[PlyCount "48"]
[EventDate "2024.04.12"]
[EventType "swiss"]
[EventCountry "BRA"]
[SourceTitle "playchess.com"]
[Source "ChessBase"]
[SourceQuality "1"]
[TimeControl "5400+30"]

{[%evp 25,48,22,35,14,20,-24,-4,-17,-14,-98,-88,-118,-77,-77,-63,-70,-58,-51,-32,-42,-3,0,0,-137,-131]} 1. e4 {[%emt 0:00:04]} e5 {[%emt 0:15:07]} 2. Nf3 {[%emt 0:00:16]} Nc6 {[%emt 0:00:10]} 3. Bb5 {[%emt 0:00:06]} a6 {[%emt 0:00:10]} 4. Ba4 {[%emt 0:00:51]} Nf6 {[%emt 0:00:10]} 5. O-O {[%emt 0:00:11]} Be7 {[%emt 0:00:09]} 6. Re1 {[%emt 0:00:21]} b5 {[%emt 0:00:09]} 7. Bb3 {[%emt 0:00:08]} d6 {[%emt 0:00:20]} 8. c3 {[%emt 0:00:14]} O-O {[%emt 0:00:10]} 9. h3 {[%emt 0:00:03]} Na5 {[%emt 0:00:09]} 10. Bc2 {[%emt 0:00:05]} c5 {[%emt 0:00:14]} 11. d4 {[%emt 0:00:14]} Qc7 {[%emt 0:00:08]} 12. Nbd2 {[%emt 0:00:08]} cxd4 {[%emt 0:00:09]} 13. cxd4 {[%emt 0:00:07]} Rd8 {[%emt 0:00:05]} 14. d5 {[%emt 0:10:46]} Bd7 {[%emt 0:03:51]} 15. b4 {[%emt 0:01:52]} Rac8 {[%emt 0:04:10]} 16. Bd3 {[%emt 0:08:04] The position is equal.} Qc3 {[%emt 0:03:17][%csl LRa1,LRb4,LRd3]} 17. Rb1 {[%emt 0:03:24]} (17. Nb3 $1 $11 {keeps the balance.} Nxb3 (17... Qxb4 18. Bd2 $16) 18. Qxb3) 17... Qxd3 $17 {[%emt 0:01:25]} 18. bxa5 {[%emt 0:03:09]} Qc2 {[%emt 0:03:27] Black has more active pieces.} 19. Ba3 {[%emt 0:13:29]} Bf8 {[%emt 0:07:20]} (19... Qxa2 20. Re3 Nxd5 21. exd5 $14) 20. Rb2 {[%emt 0:03:22]} Qc3 {[%emt 0:06:49]} 21. Nb3 {[%emt 0:13:47]} b4 {[%emt 0:02:57]} 22. Re3 {[%emt 0:00:16]} Qc4 {[%emt 0:01:55]} 23. Nfd2 {[%emt 0:00:06]} Qb5 {[%emt 0:00:44]} 24. Nc1 {[%emt 0:00:06]} (24. Na1 $11 {was the only way to keep the balance.}) 24... Qa4 $1 {[%emt 0:05:23] Weighted Error Value: White=0.30/Black=0.16 (very precise) .  Mistake:       	White=2     	---        Inaccurate:     	White=1     	Black=2      OK:         	White=3     	Black=4      Best:        	White=3     	Black=1      Strong:       	---       	Black=1} ({But not} 24... Qxa5 $6 25. Bxb4 Qa4 26. Qe1 $11) 0-1